fUSD/lending_fUSD_20260105
["ID","MTS","AMOUNT","RATE_DAILY","PERIOD"]
[400468905,1767604240258,-7902.64575082,0.00018,2]
[400468906,1767604240270,-523.34287504,0.00018,2]
[400468907,1767604240281,-2993.80498,0.00018,2]
[400468916,1767604243268,-1099.0,0.00017887,2]
[400468917,1767604244120,-1336.0,0.00017887,2]
[400468918,1767604244131,-838912.14974182,0.00018,2]
[400468919,1767604244159,-409685.21885458,0.00018,2]
[400468920,1767604245778,-24.17254275,0.00018,2]
[400468992,1767605059644,683.78,8.367e-05,2]
[400468993,1767605059845,683.78,8.808e-05,2]
[400468994,1767605060053,683.78,9.248e-05,2]
[400468995,1767605060241,683.78,9.689e-05,2]
[400468996,1767605060448,683.78,0.00010129,2]
[400468997,1767605060788,683.78,0.00010569,2]
[400468998,1767605060869,683.78,0.0001101,2]
[400468999,1767605061069,683.78,0.0001145,2]
[400469000,1767605061261,683.78,0.0001189,2]
[400469001,1767605061444,683.78,0.00012331,2]
[400469002,1767605061649,683.78,0.00012771,2]
[400469003,1767605061840,683.78,0.00013212,2]
[400469004,1767605062043,683.78,0.00013652,2]
[400469005,1767605062327,180.37,0.00014092,2]
[400469006,1767605062350,503.41,0.00014092,2]
[400469007,1767605062524,683.78,0.00014533,2]
[400469009,1767605071336,-323.33491869,0.00014973,2]
[400469010,1767605073391,-161.16083086,0.00014973,2]
[400469011,1767605075533,-183.90186694,0.00014973,2]
[400469013,1767605230137,-15.38238351,0.00014973,2]
[400469014,1767605230162,-195.0,0.00015083,2]
[400469015,1767605230184,-207.90220037,0.00015193,2]
[400469016,1767605230205,-250.0,0.00015193,2]
[400469017,1767605230227,-150.1737687,0.0001536,3]
[400469018,1767605230249,-392.86424944,0.00015414,2]
[400469021,1767605351152,-484.461804,0.00015336,2]
[400469022,1767605351174,-290.91575056,0.00015414,2]
[400469023,1767605351194,-3443.956138,0.00015844,2]
[400469024,1767605351471,-683.78,0.00015854,2]
[400469025,1767605351493,-250.0,0.00015974,2]
[400469026,1767605351515,-300.0,0.00015999,2]
[400469027,1767605351537,-964.06438944,0.00016,4]
[400469028,1767605354092,-5354.267338,0.00016,4]
[400469029,1767605356105,-6944.25231232,0.00016,4]
[400469150,1767605437859,-300.0,0.00015999,2]
[400469151,1767605437870,-300.0,0.00015999,2]
[400469152,1767605437889,-1200.0,0.00015999,2]
[400469153,1767605437900,-16694.8,0.00016,4]
[400469154,1767605437920,-507.40895949,0.00016,4]
[400469158,1767605439899,-464.51499712,0.00016,4]
[400469159,1767605439955,-540.88785543,0.00016,4]
[400469160,1767605439967,-1153.98704803,0.00016,4]
[400469161,1767605440010,-1778.21798028,0.00016,4]
[400469162,1767605440020,-166.66,0.00016048,2]
[400469163,1767605440030,-151.0,0.00016146,2]
[400469164,1767605440039,-151.0,0.00016154,2]
[400469165,1767605440049,-151.0,0.00016154,2]
[400469166,1767605440059,-4516.26664365,0.000162,5]
[400469167,1767605440068,-683.78,0.00016294,2]
[400469168,1767605440078,-166.66,0.00016386,2]
[400469169,1767605440088,-5052.83,0.00016438,2]
[400469170,1767605440100,-550.0,0.00016469,2]
[400469171,1767605440110,-195.0,0.0001647,2]
[400469172,1767605440120,-5000.0,0.0001647,2]
[400469173,1767605440130,-1655.36790437,0.0001647,2]
[400469174,1767605440141,-250.0,0.0001647,2]
[400469175,1767605440151,-153.68743037,0.0001647,2]
[400469176,1767605440160,-195.0,0.0001647,2]
[400469177,1767605440170,-193.95,0.00016515,2]
[400469178,1767605440182,-166.66,0.00016724,2]
[400469179,1767605440193,-683.78,0.00016735,2]
[400469180,1767605440203,-228.0,0.00016795,2]
[400469181,1767605440213,-17878.4667,0.00016801,2]
[400469182,1767605440224,-3240.0,0.00016894,2]
[400469183,1767605440234,-16968.09881692,0.00016901,2]
[400469184,1767605440245,-200.0,0.00016932,2]
[400469185,1767605440256,-221.40011919,0.00016998,2]
[400469186,1767605440266,-333.5473264,0.00016998,2]
[400469187,1767605440280,-250.0,0.00017,2]
[400469188,1767605440290,-166.66,0.00017061,2]
[400469189,1767605440302,-574.12855637,0.00017099,2]
[400469190,1767605440312,-200.0,0.00017174,2]
[400469191,1767605440322,-178.06,0.00017278,2]
[400469192,1767605440333,-166.66,0.00017399,2]
[400469193,1767605440343,-166.66,0.00017406,2]
[400469194,1767605440354,-193.95,0.00017433,2]
[400469195,1767605440363,-420.0,0.00017492,2]
[400469196,1767605440373,-420.0,0.00017492,2]
[400469197,1767605440383,-1680.0,0.0001758,2]
[400469198,1767605440392,-255.0,0.00017589,2]
[400469199,1767605440402,-160.2054144,0.00017617,2]
[400469200,1767605440412,-544.54338031,0.0001764,2]
[400469201,1767605440421,-595.37131296,0.00017647,2]
[400469202,1767605440432,-1082.47525921,0.00017678,2]
[400469203,1767605440442,-300.0,0.00017694,2]
[400469204,1767605440455,-300.0,0.00017705,2]
[400469205,1767605440466,-300.0,0.0001772,2]
[400469206,1767605440476,-500.0,0.00017726,2]
[400469207,1767605440485,-500.0,0.00017726,2]
[400469208,1767605440496,-300.0,0.00017737,2]
[400469209,1767605440506,-166.66,0.00017737,2]
[400469210,1767605440516,-300.0,0.00017744,2]
[400469211,1767605440527,-300.0,0.00017748,2]
[400469212,1767605440537,-300.0,0.00017754,2]
[400469213,1767605440546,-168.0,0.00017756,2]
[400469214,1767605440556,-300.0,0.00017765,2]
[400469215,1767605440566,-150.0,0.00017768,2]
[400469216,1767605440576,-320.67232886,0.00017773,2]
[400469217,1767605440586,-500.0,0.00017781,2]
[400469218,1767605440596,-2281.96781601,0.000178,2]
[400469219,1767605440607,-2500.0,0.000178,2]
[400469220,1767605440616,-152.53735496,0.00017802,2]
[400469221,1767605440626,-2281.96781598,0.00017811,2]
[400469222,1767605440636,-183.0,0.00017816,2]
[400469223,1767605440646,-300.0,0.00017821,2]
[400469224,1767605440656,-2281.96781598,0.00017822,2]
[400469225,1767605440666,-2281.96781598,0.00017833,2]
[400469226,1767605440680,-500.0,0.00017836,2]
[400469227,1767605440690,-2281.96781598,0.00017844,2]
[400469228,1767605440700,-2281.96781598,0.00017856,2]
[400469229,1767605440710,-2281.96781598,0.00017867,2]
[400469230,1767605440720,-300.0,0.00017876,2]
[400469231,1767605440730,-2281.96781598,0.00017878,2]
[400469232,1767605440740,-2281.96781598,0.00017889,2]
[400469233,1767605440750,-500.0,0.0001789,2]
[400469234,1767605440760,-462.02,0.000179,3]
[400469235,1767605440770,-853.96257269,0.000179,3]
[400469236,1767605440781,-1312.54758522,0.000179,2]
[400469237,1767605440791,-2281.96781598,0.000179,2]
[400469238,1767605440801,-523.77739302,0.000179,2]
[400469239,1767605440811,-105266.18731092,0.000179,2]
[400469240,1767605440821,-580.42538743,0.000179,2]
[400469241,1767605440833,-186.78054181,0.000179,2]
[400469242,1767605440842,-500.0,0.00017933,2]
[400469243,1767605440853,-500.0,0.00017933,2]
[400469244,1767605440863,-300.0,0.00017935,2]
[400469245,1767605440877,-300.0,0.00017943,2]
[400469246,1767605440887,-465.91415831,0.00017945,2]
[400469247,1767605440898,-183.0,0.00017954,2]
[400469248,1767605440910,-300.0,0.00017965,2]
[400469249,1767605440921,-150.0,0.00017973,2]
[400469250,1767605440931,-500.0,0.00017985,2]
[400469251,1767605440941,-500.0,0.00017988,2]
[400469252,1767605440951,-14790.6250963,0.00017988,2]
[400469253,1767605440961,-32964.1393145,0.00017989,2]
[400469254,1767605440971,-54194.5452719,0.00017989,2]
[400469255,1767605440981,-3614.0776939,0.00017989,2]
[400469256,1767605440991,-11359.356067,0.00017989,2]
[400469257,1767605441001,-1255.5343572,0.00017989,2]
[400469258,1767605441010,-201.91382998,0.0001799,2]
[400469259,1767605441020,-201.91382998,0.0001799,2]
[400469260,1767605441030,-500.0,0.00017999,2]
[400469261,1767605441041,-514.2468323,0.00017999,2]
[400469262,1767605441051,-283.51547018,0.00017999,2]
[400469263,1767605441061,-500.0,0.00017999,2]
[400469264,1767605441074,-621.72362606,0.00017999,2]
[400469265,1767605441084,-500.0,0.00017999,2]
[400469266,1767605441093,-500.0,0.00017999,2]
[400469267,1767605441104,-500.0,0.00017999,2]
[400469268,1767605441114,-500.0,0.00017999,2]
[400469269,1767605441124,-500.0,0.00017999,2]
[400469270,1767605441134,-400.0,0.00017999,2]
[400469271,1767605441144,-500.0,0.00017999,2]
[400469272,1767605441154,-550.60903699,0.00017999,2]
[400469273,1767605441164,-1380.82,0.00017999,2]
[400469274,1767605441175,-500.0,0.00017999,2]
[400469275,1767605441184,-500.0,0.00017999,2]
[400469276,1767605441196,-500.0,0.00017999,2]
[400469277,1767605441208,-500.0,0.00017999,2]
[400469278,1767605441218,-500.0,0.00017999,2]
[400469279,1767605441228,-500.0,0.00017999,2]
[400469280,1767605441237,-500.0,0.00017999,2]
[400469281,1767605441247,-500.0,0.00017999,2]
[400469282,1767605441257,-500.0,0.00017999,2]
[400469283,1767605441266,-500.0,0.00017999,2]
[400469284,1767605441281,-208.06812993,0.00017999,2]
[400469285,1767605441301,-521.20759762,0.00017999,2]
[400469286,1767605441318,-506.98336707,0.00017999,2]
[400469287,1767605441328,-509.59416457,0.00017999,2]
[400469288,1767605441337,-500.0,0.00017999,2]
[400469289,1767605441347,-500.0,0.00017999,2]
[400469290,1767605441356,-500.0,0.00017999,2]
[400469291,1767605441366,-500.0,0.00017999,2]
[400469292,1767605441375,-500.0,0.00017999,2]
[400469293,1767605441384,-500.0,0.00017999,2]
[400469294,1767605441394,-500.0,0.00017999,2]
[400469295,1767605441403,-500.0,0.00017999,2]
[400469296,1767605441413,-500.0,0.00017999,2]
[400469297,1767605441423,-500.0,0.00017999,2]
[400469298,1767605441432,-476.4585465,0.00017999,2]
[400469299,1767605441442,-1663.0,0.00018,2]
[400469300,1767605441452,-186012.59105777,0.00018,2]
[400469321,1767605443322,-714.89017128,0.00018,2]
[400469322,1767605443378,-40800.635801,0.00018,2]
[400469341,1767605446026,-1119.4678,0.00018,2]
[400469346,1767606276728,625.2,0.00013699,2]
[400469348,1767606401094,-165.40813569,0.00015695,2]
[400469359,1767606631916,-195.0,0.00015577,2]
[400469360,1767606631926,-249.12163361,0.00015616,2]
[400469361,1767606631935,-103.65144807,0.00015774,2]
[400469362,1767606631970,-731.38855193,0.00015774,2]
[400469363,1767606631979,-73.79740445,0.00015794,3]
[400469427,1767606637907,-93.23986699,0.00015794,3]
[400469428,1767606637917,-1437.56,0.00015981,2]
[400469429,1767606637927,-6518.32063843,0.00016004,2]
[400469430,1767606637961,-1188.74622491,0.00016004,2]
[400469431,1767606638017,-1294.81404362,0.00016004,2]
[400469432,1767606638029,-401.05909304,0.00016004,2]
[400469433,1767606638039,-200.0,0.00016084,2]
[400469434,1767606638049,-559.07,0.0001616,2]
[400469435,1767606638059,-500.0,0.00016197,2]
[400469436,1767606638069,-202.21894356,0.00016198,2]
[400469437,1767606638081,-97.78105644,0.00016198,2]
[400469438,1767606638093,-1200.0,0.00016199,2]
[400469439,1767606638103,-7766.5,0.000162,2]
[400469440,1767606638113,-151.0,0.00016255,2]
[400469441,1767606638122,-151.0,0.00016255,2]
[400469442,1767606638132,-151.0,0.00016268,2]
[400469443,1767606638142,-611.7,0.0001629,2]
[400469444,1767606638153,-1422.84,0.00016292,2]
[400469445,1767606638163,-999.0,0.00016388,3]
[400469446,1767606638173,-11954.74090991,0.000166,2]
[400469447,1767606638185,-5739.18585998,0.000166,2]
[400469448,1767606638197,-13723.7384882,0.000166,2]
[400469459,1767606640071,-141.74136852,0.00016268,2]
[400469460,1767606640083,-9.25863148,0.00016268,2]
[400469461,1767606640093,-328.90136816,0.000166,2]
[400469462,1767606640130,-1030.81662072,0.000166,2]
[400469465,1767606640343,-449.05,0.000166,2]
[400469499,1767606643551,-323.859606,0.00016186,2]
[400469500,1767606643560,-1037.22022559,0.000166,2]
[400469501,1767606644387,-992.00648885,0.000166,2]
[400469502,1767606644466,-18.37868177,0.000166,2]
[400469505,1767606645986,-297.01400883,0.000166,2]
[400469510,1767606749352,500.0,0.00032877,120]
[400469511,1767606861945,317.80594275,0.00031602,120]
[400469512,1767606863854,423.741257,0.00031602,120]
[400469513,1767606934945,317.80594274,0.00031602,120]
[400469517,1767607581374,155.0,0.00032876,120]
[400469518,1767607640097,-166.66,0.00014988,2]
[400469519,1767607640117,-372.81151272,0.00015067,2]
[400469520,1767607640137,-300.0,0.00015146,2]
[400469521,1767607640157,-195.0,0.00015146,2]
[400469522,1767607640177,-166.66,0.00015304,2]
[400469523,1767607640197,-195.0,0.00015485,2]
[400469524,1767607640217,-166.66,0.00015619,2]
[400469525,1767607640241,-384.27,0.00015736,2]
[400469526,1767607640261,-1321.85,0.00015817,2]
[400469527,1767607640281,-1547.03,0.00015904,2]
[400469528,1767607640302,-283.0,0.00015904,2]
[400469529,1767607640323,-166.66,0.00015935,2]
[400469530,1767607640342,-200.0,0.00015982,2]
[400469531,1767607640362,-151.0,0.00016077,2]
[400469532,1767607640383,-151.0,0.00016096,2]
[400469533,1767607640404,-1200.0,0.00016115,2]
[400469534,1767607640426,-300.0,0.00016115,2]
[400469535,1767607640446,-550.0,0.00016115,2]
[400469536,1767607640470,-500.0,0.00016115,2]
[400469537,1767607640494,-500.0,0.00016115,2]
[400469538,1767607640515,-540.3306267,0.00016115,2]
[400469539,1767607640535,-500.0,0.00016115,2]
[400469540,1767607640555,-559.31291562,0.00016115,2]
[400469541,1767607640575,-500.0,0.00016115,2]
[400469542,1767607640596,-105.77324469,0.00016115,2]
[400469543,1767607746081,-17878.4667,0.00016016,2]
[400469544,1767607746102,-550.0,0.00016115,2]
[400469545,1767607746122,-99.9717075,0.00016115,2]
[400469546,1767607746146,-500.0,0.00016115,2]
[400469547,1767607746167,-208.64058908,0.00016115,2]
[400469548,1767607746191,-161.02663267,0.00016115,2]
[400469549,1767607746220,-500.0,0.00016115,2]
[400469550,1767607746244,-500.0,0.00016115,2]
[400469551,1767607746270,-395.10844892,0.00016115,2]
[400469552,1767607746292,-5620.56,0.00016116,2]
[400469553,1767607746315,-2615.43,0.00016116,2]
[400469554,1767607746338,-2086.36,0.00016116,2]
[400469555,1767607746360,-3813.81,0.00016116,2]
[400469556,1767607746382,-2307.14519771,0.00016116,2]
[400469557,1767607768145,-5354.270866,0.00016116,2]
[400469558,1767607772147,-6417.128886,0.00016116,2]
[400469561,1767607831951,-3343.32291668,0.00016016,2]
[400469562,1767607832005,-1242.16060208,0.00016016,2]
[400469563,1767607832016,-62147.84015263,0.00016016,2]
[400469564,1767607832077,-3767.42126143,0.00016016,2]
[400469565,1767607832112,-324.27327818,0.00016016,2]
[400469566,1767607832123,-253.75974854,0.00016016,2]
[400469567,1767607838023,-3030.92852201,0.00016016,2]
[400469571,1767607840101,-1256.38003316,0.00016016,2]
[400469572,1767607840207,-505.60542929,0.00016016,2]
[400469573,1767607840219,-402.46404,0.00016016,2]
[400469574,1767607840260,-3328.04430103,0.00016016,2]
[400469575,1767607840271,-539.63574858,0.00016016,2]
[400469576,1767607840315,-354748.60766639,0.00016016,2]
[400469577,1767607840324,-300.0,0.00016115,2]
[400469578,1767607840334,-300.0,0.00016115,2]
[400469579,1767607840343,-1200.0,0.00016115,2]
[400469580,1767607840354,-285.0,0.00016116,2]
[400469581,1767607840363,-40.59505029,0.00016116,2]
[400469582,1767607840371,-3943.36,0.00016116,2]
[400469583,1767607840384,-999.99,0.00016116,2]
[400469584,1767607840393,-1212.07,0.00016116,2]
[400469585,1767607840403,-150.99,0.00016116,2]
[400469586,1767607840412,-9999.99,0.00016116,2]
[400469589,1767607840635,-9999.99,0.00016116,2]
[400469590,1767607840644,-524.73,0.00016116,2]
[400469591,1767607840653,-6100.83,0.00016116,2]
[400469592,1767607840663,-150.99,0.00016116,2]
[400469593,1767607840679,-4491.15,0.00016116,2]
[400469594,1767607840691,-151.0,0.00016213,2]
[400469595,1767607840701,-235.44,0.00016213,2]
[400469596,1767607840711,-166.66,0.0001625,2]
[400469597,1767607840720,-166.67,0.00016382,2]
[400469598,1767607840730,-168.0,0.00016431,2]
[400469599,1767607840739,-500.0,0.00016438,2]
[400469600,1767607840749,-500.0,0.00016438,2]
[400469601,1767607840758,-500.0,0.00016438,2]
[400469602,1767607840768,-500.0,0.00016438,2]
[400469603,1767607840777,-500.0,0.00016438,2]
[400469604,1767607840787,-500.0,0.00016438,2]
[400469605,1767607840799,-500.0,0.00016438,2]
[400469606,1767607840811,-500.0,0.00016438,2]
[400469607,1767607840820,-500.0,0.00016438,2]
[400469608,1767607840830,-500.0,0.00016438,2]
[400469609,1767607840840,-622.23180051,0.00016438,2]
[400469610,1767607840849,-500.0,0.00016438,2]
[400469611,1767607840859,-500.0,0.00016438,2]
[400469612,1767607840868,-500.0,0.00016438,2]
[400469613,1767607840877,-500.0,0.00016438,2]
[400469614,1767607840887,-500.0,0.00016438,2]
[400469615,1767607840897,-500.0,0.00016438,2]
[400469616,1767607840907,-500.0,0.00016438,2]
[400469617,1767607840916,-500.0,0.00016438,2]
[400469618,1767607840925,-500.0,0.00016438,2]
[400469619,1767607840935,-500.0,0.00016438,2]
[400469620,1767607840944,-500.0,0.00016438,2]
[400469621,1767607840956,-500.0,0.00016438,2]
[400469622,1767607840967,-500.0,0.00016438,2]
[400469623,1767607840980,-500.0,0.00016438,2]
[400469624,1767607840989,-500.0,0.00016438,2]
[400469625,1767607840999,-500.0,0.00016438,2]
[400469626,1767607841008,-500.0,0.00016438,2]
[400469627,1767607841018,-500.0,0.00016438,2]
[400469628,1767607841028,-500.0,0.00016438,2]
[400469629,1767607841037,-500.0,0.00016438,2]
[400469630,1767607841047,-500.0,0.00016438,2]
[400469631,1767607841056,-500.0,0.00016438,2]
[400469632,1767607841066,-500.0,0.00016438,2]
[400469633,1767607841075,-500.0,0.00016438,2]
[400469634,1767607841085,-500.0,0.00016438,2]
[400469635,1767607841094,-500.0,0.00016438,2]
[400469636,1767607841104,-500.0,0.00016438,2]
[400469637,1767607841113,-500.0,0.00016438,2]
[400469638,1767607841122,-500.0,0.00016438,2]
[400469639,1767607841132,-500.0,0.00016438,2]
[400469640,1767607841141,-500.0,0.00016438,2]
[400469641,1767607841150,-500.0,0.00016438,2]
[400469642,1767607841159,-463.58131117,0.00016438,2]
[400469643,1767607841169,-500.0,0.00016438,2]
[400469644,1767607841178,-500.0,0.00016438,2]
[400469645,1767607841189,-500.0,0.00016438,2]
[400469646,1767607841198,-500.0,0.00016438,2]
[400469647,1767607841207,-500.0,0.00016438,2]
[400469648,1767607841217,-500.0,0.00016438,2]
[400469649,1767607841226,-500.0,0.00016438,2]
[400469650,1767607841236,-500.0,0.00016438,2]
[400469651,1767607841245,-500.0,0.00016438,2]
[400469652,1767607841254,-500.0,0.00016438,2]
[400469653,1767607841264,-500.0,0.00016438,2]
[400469654,1767607841273,-500.0,0.00016438,2]
[400469655,1767607841283,-500.0,0.00016438,2]
[400469656,1767607841292,-500.0,0.00016438,2]
[400469657,1767607841301,-500.0,0.00016438,2]
[400469658,1767607841311,-500.0,0.00016438,2]
[400469659,1767607841320,-500.0,0.00016438,2]
[400469660,1767607841329,-500.0,0.00016438,2]
[400469661,1767607841339,-500.0,0.00016438,2]
[400469662,1767607841348,-5313.73,0.00016438,2]
[400469663,1767607841358,-354.35076502,0.00016487,2]
[400469664,1767607841367,-300.0,0.00016487,2]
[400469665,1767607841377,-760.40654114,0.00016487,2]
[400469666,1767607841387,-153.68743037,0.00016487,2]
[400469667,1767607841396,-195.0,0.00016487,2]
[400469668,1767607841406,-5000.0,0.00016487,2]
[400469669,1767607841415,-1655.36790437,0.00016487,2]
[400469670,1767607841425,-250.0,0.00016487,2]
[400469671,1767607841439,-309.04,0.00016515,2]
[400469672,1767607841449,-166.66,0.00016566,2]
[400469673,1767607841459,-212.92203508,0.00016588,2]
[400469674,1767607841469,-151.0,0.000166,2]
[400469675,1767607841478,-151.0,0.000166,2]
[400469676,1767607841488,-210.09,0.00016617,3]
[400469677,1767607841498,-1599.74,0.00016645,2]
[400469678,1767607841507,-315.10442513,0.00016646,2]
[400469679,1767607841517,-1000.0,0.00016657,2]
[400469680,1767607841526,-12535.90765124,0.00016676,2]
[400469681,1767607841536,-5038.83933938,0.00016676,2]
[400469682,1767607841547,-500.0,0.00016697,2]
[400469683,1767607841557,-500.0,0.00016697,2]
[400469684,1767607841566,-521.20759762,0.00016697,2]
[400469685,1767607841576,-500.0,0.00016697,2]
[400469686,1767607841586,-509.59416457,0.00016697,2]
[400469687,1767607841595,-506.85863405,0.00016712,2]
[400469688,1767607841605,-189.0,0.00016776,2]
[400469689,1767607841614,-12535.90765124,0.00016812,2]
[400469690,1767607841623,-5038.83933935,0.00016812,2]
[400469691,1767607841633,-550.60903699,0.00016898,2]
[400469692,1767607841642,-500.0,0.00016898,2]
[400469693,1767607841652,-500.0,0.00016898,2]
[400469694,1767607841661,-1599.74,0.00016919,2]
[400469695,1767607841671,-12535.90765124,0.00016948,2]
[400469696,1767607841680,-5038.83933935,0.00016948,2]
[400469697,1767607841689,-500.0,0.0001697,2]
[400469698,1767607841699,-250.0,0.00017,2]
[400469699,1767607841709,-44322.64,0.00017073,2]
[400469700,1767607841720,-12535.90765124,0.00017084,2]
[400469701,1767607841730,-5038.83933935,0.00017084,2]
[400469702,1767607841739,-574.12855637,0.00017099,2]
[400469703,1767607841749,-611.7,0.00017104,2]
[400469704,1767607841758,-1599.74,0.00017193,2]
[400469705,1767607841768,-4235.54,0.00017205,2]
[400469706,1767607841777,-12535.90765124,0.0001722,2]
[400469707,1767607841787,-5038.83933935,0.0001722,2]
[400469708,1767607841797,-838.0,0.00017227,2]
[400469709,1767607841807,-193.61157153,0.0001728,2]
[400469710,1767607841824,-1910.0,0.00017284,2]
[400469711,1767607841834,-590.7,0.0001731,2]
[400469712,1767607841843,-12535.90765124,0.00017356,2]
[400469713,1767607841853,-5038.83933935,0.00017356,2]
[400469714,1767607841863,-1235.0,0.0001738,2]
[400469715,1767607841872,-1910.0,0.00017383,2]
[400469716,1767607841882,-1000.0,0.000174,2]
[400469717,1767607841892,-1599.74,0.00017467,2]
[400469718,1767607841902,-4906.31712717,0.00017492,2]
[400469719,1767607841915,-463.02,0.00017492,2]
[400469720,1767607841926,-398.52112028,0.00017492,2]
[400469724,1767607845652,-221.40011919,0.00016015,2]
[400469725,1767607845662,-95.24988081,0.00016015,2]
[400469726,1767607846059,-325.62291897,0.00016015,2]
[400469727,1767607846069,-266.12316099,0.00016015,2]
[400469728,1767607846078,-500.0,0.00016438,2]
[400469729,1767607846088,-500.0,0.00016438,2]
[400469730,1767607846098,-500.0,0.00016438,2]
[400469731,1767607846109,-458.58131117,0.00016438,2]
[400469732,1767607846119,-500.0,0.00016438,2]
[400469733,1767607846128,-500.0,0.00016438,2]
[400469734,1767607846138,-500.0,0.00016438,2]
[400469735,1767607846148,-1089.39271417,0.00016545,2]
[400469736,1767607846376,-201.45478583,0.00016545,2]
[400469737,1767607846386,-6768.04940379,0.00017492,2]
[400469738,1767607846397,-5038.83933935,0.00017492,2]
[400469739,1767607846418,-151.0,0.00017492,2]
[400469740,1767607846441,-151.0,0.00017492,2]
[400469742,1767607846451,-1000.0,0.000175,2]
[400469744,1767607846460,-881.0,0.00017534,2]
[400469746,1767607846470,-1126.0,0.000176,2]
[400469748,1767607846481,-420.0,0.00017617,2]
[400469749,1767607846491,-420.0,0.00017617,2]
[400469751,1767607846501,-250.0,0.00017618,2]
[400469753,1767607846511,-1910.0,0.00017628,2]
[400469754,1767607846521,-10056.63536055,0.00017628,2]
[400469766,1767608455523,152.04,8.229e-05,2]
[400469767,1767608455740,152.04,9.143e-05,2]
[400469768,1767608455946,152.04,0.00010057,2]
[400469769,1767608456166,152.04,0.00010971,2]
[400469770,1767608456364,152.04,0.00011886,2]
[400469771,1767608456830,152.04,0.000128,2]
[400469772,1767608456895,152.04,0.00013714,2]
[400469773,1767608456978,152.04,0.00014628,2]
[400469774,1767608483986,7548.0,0.00032877,120]
[400469778,1767608811047,1351.35513921,0.00015,14]
[400469780,1767608850124,-152.04,0.00015543,2]
[400469781,1767608850145,-351.02788299,0.00015602,2]
[400469782,1767608850164,-354.35076502,0.00015661,2]
[400469783,1767608850184,-300.0,0.00015661,2]
[400469784,1767608850206,-150.1737687,0.00015722,3]
[400469785,1767608850234,-884.97540434,0.00016016,2]
[400469786,1767608851111,-684.06667584,0.00016016,2]
[400469793,1767609007115,529.2,0.0001635,60]
[400469798,1767609032143,-485.01153519,0.00016028,2]
[400469800,1767609032356,-275.39500595,0.00016028,2]
[400469801,1767609032366,-195.0,0.0001604,2]
[400469802,1767609032376,-76.11682003,0.00016065,2]
[400469803,1767609032387,-302.0,0.00016065,2]
[400469811,1767609038254,-2861.88317997,0.00016065,2]
[400469812,1767609038264,-715.0,0.00016128,2]
[400469813,1767609038274,-300.0,0.00016128,2]
[400469814,1767609038284,-300.0,0.00016128,2]
[400469815,1767609038294,-1200.0,0.00016128,2]
[400469816,1767609038303,-18627.57207002,0.00016129,2]
[400469823,1767609040478,-489.36,0.00016125,2]
[400469824,1767609040487,-398.3659876,0.00016129,2]
[400469839,1767609044056,-141.08165279,0.00016129,2]
[400469847,1767609046272,-974.46124942,0.00016129,2]
[400469848,1767609046294,-137.36428176,0.00016129,2]
[400469849,1767609046569,-76.00740834,0.00016129,2]
[400469856,1767609719608,667.71,0.00013699,2]
[400469857,1767609761048,16181.73,0.00032876,120]
[400469858,1767610035177,-219.26371611,0.0001543,2]
[400469859,1767610158108,-89.77628389,0.0001543,2]
[400469860,1767610158132,-250.0,0.00015438,2]
[400469861,1767610158153,-4025.25,0.00015461,2]
[400469862,1767610158174,-200.0,0.00015479,2]